Cogmind - Beta 13 @@@ ROGUE MODE // 2024.05.02 @ 02:04:45 Player: WarMechanic Result: Destroyed by S-27 Virus with Autogun Performance ------------- Evolutions (3) 1500 Regions Visited (8) 1600 Robots Destroyed (57) 285 Value Destroyed (1765) 1765 Prototype IDs (1) 20 Alien Tech Used (0) 0 Bonus (244) 244 TOTAL SCORE: 5414 Bonus ------- Follower Combat Kills 42 Aligned with FarCom 300 Friendly Fire -98 Cogmind --------- Core Integrity 0/700 Matter 144/300 Energy 185/185 System Corruption 2% Temperature Cool (64) Movement Core (300) Ox5 Location -7/Factory Parts ------- > --- POWER (2) -------- Light Ion Engine Light Nuclear Core > --- PROPULSION (2) --- (None) > --- UTILITY (6) ------ Improved Signal Interpreter Salvage Targeting Computer Kinecellerator > --- WEAPON (3) ------- Advanced Assault Cannon > --- INVENTORY (5) ---- Target Analyzer Layered Light Armor Plating Improved System Restoration Module Improved System Restoration Module Heavy Particle Cannon Peak State ------------ > --- POWER ------------ (None) > --- PROPULSION ------- (None) > --- UTILITY ---------- Improved Signal Interpreter Active Sensor Suite Salvage Targeting Computer > --- WEAPON ----------- Proton Missile Launcher > --- INVENTORY -------- Heavy Assault Cannon Proton Missile Launcher [Rating: 37] Favorites ----------- Power Ion Engine Engine Ion Engine Power Core Light Nuclear Core Propulsion Light Treads Treads Light Treads Wheel Wheel Flight Unit VTOL Module Utility High-capacity Storage Unit Device Seismic Detector Storage High-capacity Storage Unit Processor Salvage Targeting Computer Hackware Hacking Suite Protection Medium Armor Plating Weapon Particle Cannon Energy Gun Medium Laser Energy Cannon Particle Cannon Ballistic Gun Heavy Assault Rifle Ballistic Cannon Heavy Assault Cannon Launcher Rocket Launcher Special Weapon Mining Laser Build | -11 -10 -10 -10 -9 -8 -7 -7 -7 ------- Run | Yrd Mat Min Exi Min Mat Fac Was Fac Slots Evolved 6 | . . . . . 4 2 . . Power 1 | . . . . . 1 . . . Propulsion . | . . . . . . . . . Utility 4 | . . . . . 3 1 . . Weapon 1 | . . . . . . 1 . . Parts Attached 57 | 7 . . 4 2 27 2 2 13 Power 9 | 1 . . . . 4 . . 4 Engine 4 | 1 . . . . 2 . . 1 Core 5 | . . . . . 2 . . 3 Reactor . | . . . . . . . . . Propulsion 10 | 2 . . . . 7 . . 1 Treads 6 | 1 . . . . 5 . . . Leg . | . . . . . . . . . Wheel 3 | 1 . . . . 2 . . . Hover . | . . . . . . . . . Flight 1 | . . . . . . . . 1 Utility 15 | 2 . . 2 . 5 2 . 4 Device 5 | 1 . . . . . . . 4 Storage 3 | 1 . . 2 . . . . . Processor 3 | . . . . . 3 . . . Hackware 1 | . . . . . . 1 . . Protection 3 | . . . . . 2 1 . . Artifact . | . . . . . . . . . Weapon 23 | 2 . . 2 2 11 . 2 4 Energy Gun 6 | 2 . . 1 . 3 . . . Energy Cannon 4 | . . . . . 4 . . . Ballistic Gun 1 | . . . . . . . 1 . Ballistic Cannon 3 | . . . . . . . 1 2 Launcher 7 | . . . 1 1 3 . . 2 Special Weapon 2 | . . . . 1 1 . . . Impact Weapon . | . . . . . . . . . Slashing Weapon . | . . . . . . . . . Piercing Weapon . | . . . . . . . . . Special Melee Weapon . | . . . . . . . . . Unidentified Prototypes 1 | . . . . . . . . 1 Parts Lost 21 | . . . . . 11 . 4 6 Power 5 | . . . . . 3 . . 2 Propulsion 4 | . . . . . 4 . . . Utility 6 | . . . . . 2 . 3 1 Weapon 6 | . . . . . 2 . 1 3 Highest Loss Streak 4 | . . . . . 4 . 4 3 To Critical Strikes . | . . . . . . . . . Average Slot Usage (%) 81 | . 100 100 100 100 90 76 48 35 Engine 8 | . 14 14 14 14 7 . . . Core 4 | . . . . . 6 . . 7 Treads 9 | . 14 14 14 14 11 7 3 . Wheel 7 | . 14 14 14 14 6 7 2 . Device 6 | . 14 14 14 14 . . . 4 Storage 8 | . 14 14 14 14 9 7 3 . Processor 12 | . . . . . 20 23 20 15 Protection 4 | . . . . . 10 7 5 . Energy Gun 6 | . 28 28 28 6 . 7 . . Energy Cannon 3 | . . . . . 8 . . . Launcher 5 | . . . . 14 5 7 1 2 Special Weapon 2 | . . . . 7 3 . . . Naked Turns . | . . . . . . . . . Heaviest Build 72 | 14 14 14 49 52 72 48 55 26 Greatest Support 40 | 10 10 10 10 10 40 10 10 3 Greatest Overweight (x) 8 | 1 1 1 4 5 7 4 5 8 Average Overweight (x) 3 | . 1 1 2 4 4 4 1 4 Largest Inventory Capacity 20 | 8 8 8 20 20 20 20 20 5 Average Capacity 15 | 7 8 8 15 20 20 20 12 5 Most Carried 20 | 8 8 8 12 20 20 20 20 5 Average Carried 13 | 4 7 7 9 18 19 19 12 3 Final Capacity 20 | 8 8 8 20 20 20 20 5 5 Final Carried 20 | 7 8 8 12 20 20 20 5 5 Class Distribution -------------------- 93% | Mutant 6% | Scavenger-Mutant Dominant Class ---------------- Mutant | -10/Materials Mutant | -10/Mines Mutant | -10/Exiles Mutant | -9/Mines Mutant | -8/Materials Scavenger-Mutant | -7/Factory Mutant | -7/Waste Mutant | -7/Factory Resources | -11 -10 -10 -10 -9 -8 -7 -7 -7 ----------- Run | Yrd Mat Min Exi Min Mat Fac Was Fac Matter Collected 1279 | 270 . . . 192 379 . 25 413 Remotely . | . . . . . . . . . Salvage Created 2026 | 161 . 60 . 43 995 . 461 306 Parts 102 | 14 . 2 . 16 43 . . 27 Haulers Intercepted . | . . . . . . . . . Recyclers Shooed . | . . . . . . . . . Parts Field Recycled . | . . . . . . . . . Retrieved Matter . | . . . . . . . . . Parts Self-Destructed . | . . . . . . . . . Prevented . | . . . . . . . . . Kills | -11 -10 -10 -10 -9 -8 -7 -7 -7 ------- Run | Yrd Mat Min Exi Min Mat Fac Was Fac Combat Hostiles Destroyed 39 | . . 1 . 7 18 . 2 11 Melee 1 | . . . . . . . . 1 Guns 3 | . . 1 . . 2 . . . Cannons 19 | . . . . . 8 . 2 9 AOE 15 | . . . . 7 7 . . 1 Classes Destroyed 14 | 2 . 1 . 4 4 . 1 2 Worker 3 | . . . . 1 2 . . . Builder 2 | . . . . . 1 . . 1 Tunneler 7 | 5 . . . 2 . . . . Recycler 5 | 1 . . . . 4 . . . Operator 1 | . . . . . 1 . . . Watcher 1 | . . . . . . . . 1 Swarmer 9 | . . . . 4 . . . 5 Grunt 21 | . . 1 . . 15 . . 5 Sentry 2 | . . . . . 2 . . . Demolisher 2 | . . . . 2 . . . . Programmer 1 | . . . . . . . . 1 Heavy 1 | . . . . . 1 . . . Compactor 2 | . . . . . . . 2 . Assembled 1 | . . . . 1 . . . . Best Kill Streak 6 | 6 . 1 . 6 6 . 1 3 Combat Bots Only 3 | . . 1 . 2 3 . 1 3 Max Kills in Single Turn 4 | 1 . 1 . 3 4 . 1 2 Gunslinging . | . . . . . . . . . Exploded 2 | . . . . 2 1 . . 1 Melee 1 | . . . . . . . . 1 Uniques/NPCs Destroyed . | . . . . . . . . . Combat | -11 -10 -10 -10 -9 -8 -7 -7 -7 -------- Run | Yrd Mat Min Exi Min Mat Fac Was Fac Hostile Shots Fired 229 | . . 3 . 13 110 . 11 92 Missed 60 | . . 1 . 5 26 . 2 26 Damage Taken 3483 | . . 30 . 105 1663 . 363 1322 Core 1004 | . . . . 20 277 . 72 635 Absorbed by Shields . | . . . . . . . . . Redirected to Shielding 31 | . . . . . . . 31 . Core Remaining (%) 80 | 100 . . . 92 49 . . . Volleys Fired 167 | 12 . 3 2 24 83 . 14 29 Largest 2 | 2 . 2 1 1 2 . 2 1 Hottest 136 | 90 . 90 33 100 136 . 83 60 Shots Fired 201 | 24 . 6 2 24 101 . 15 29 Gun 50 | 24 . 6 . 2 17 . 1 . Cannon 93 | . . . . . 53 . 14 26 Launcher 36 | . . . 2 10 21 . . 3 Special 22 | . . . . 12 10 . . . Kinetic 41 | . . . . . . . 15 26 Thermal 124 | 24 . 6 . 14 80 . . . Explosive 33 | . . . 2 10 21 . . . Electromagnetic 3 | . . . . . . . . 3 Robot Hit Streak 17 | 4 . 8 . 2 17 . 8 8 Robot Miss Streak 3 | 2 . . . 3 3 . 1 2 Penetration Max 1 | . . . . . . . . 1 Secondary Targets . | . . . . . . . . . Shots Hit Robots 113 | 15 . 6 . 3 60 . 13 16 Core Hits 84 | 7 . 2 . 16 43 . 3 13 Critical Kills . | . . . . . . . . . Critical Parts Destroyed . | . . . . . . . . . Critical Strikes 3 | . . . . . . . 1 2 Blast 3 | . . . . . . . 1 2 Melee Attacks . | . . . . . . . . . Impact . | . . . . . . . . . Slashing . | . . . . . . . . . Piercing . | . . . . . . . . . Sneak Attacks . | . . . . . . . . . Combat Hostiles . | . . . . . . . . . Follow-up Attacks . | . . . . . . . . . Damage Inflicted 5243 | 174 . 70 . 543 2795 . 701 960 Guns 518 | 174 . 70 . . 259 . 15 . Cannons 2173 | . . . . . 774 . 686 713 Explosions 2527 | . . . . 543 1762 . . 222 Melee . | . . . . . . . . . Ramming 25 | . . . . . . . . 25 Kinetic 1414 | . . . . . . . 701 713 Thermal 1277 | 174 . 70 . . 1033 . . . Explosive 2360 | . . . . 543 1762 . . 55 Electromagnetic 167 | . . . . . . . . 167 Impact . | . . . . . . . . . Slashing . | . . . . . . . . . Piercing . | . . . . . . . . . Highest Corruption 11 | . . . . . . . 10 11 Average Corruption 8 | . . . . . . . 10 8 Corruption Purged 11 | . . . . . . . . 11 Corruption Blocked . | . . . . . . . . . Effects 37 | . . . . . . . 5 32 Message Errors 8 | . . . . . . . . 8 Matter Fused 10 | . . . . . . . 2 8 Heat Flow Errors 5 | . . . . . . . . 5 Energy Discharges 3 | . . . . . . . . 3 Parts Rejected 3 | . . . . . . . 3 . Data Loss (minor) 4 | . . . . . . . . 4 Data Loss (major) 2 | . . . . . . . . 2 Misfires 1 | . . . . . . . . 1 Weapon Failures 1 | . . . . . . . . 1 Overload Shots . | . . . . . . . . . Overflow Damage 175 | . . . . 38 43 . . 94 Projectiles 48 | . . . . . 23 . . 25 Explosions 127 | . . . . 38 20 . . 69 Melee . | . . . . . . . . . Knockbacks 4 | . . . . . . . . 4 Impact . | . . . . . . . . . Kinetic 3 | . . . . . . . . 3 Secondary 1 | . . . . . . . . 1 Self-Inflicted Damage 273 | . . . . . 94 . . 179 Shots 10 | . . . . . 5 . . 5 Rammed 18 | . . . . . . . . 18 Targets Rammed 18 | . . . . . . . . 18 Kicked . | . . . . . . . . . Crushed . | . . . . . . . . . Highest Temperature 422 | 90 . 108 . 60 422 . . 251 Average Temperature 111 | 36 . 57 . 23 152 . . 45 Received Heat Transfer 837 | . . 18 . . 693 . . 126 Effects 11 | . . . . . 11 . . . Shutdowns 4 | . . . . . 4 . . . Interference 5 | . . . . . 5 . . . Matter Decay 2 | . . . . . 2 . . . Siege Activations . | . . . . . . . . . Robots Corrupted . | . . . . . . . . . Combat Hostiles . | . . . . . . . . . Parts Fried . | . . . . . . . . . Impact Corruptions . | . . . . . . . . . Robots Melted 1 | . . . . . 1 . . . Combat Hostiles 1 | . . . . . 1 . . . Parts Melted 5 | 1 . . . . 4 . . . Heat Transferred 2582 | 435 . 186 . . 1961 . . . Parts Sabotaged . | . . . . . . . . . Parts Stolen . | . . . . . . . . . Parts Stripped . | . . . . . . . . . Power Chain Reactions 1 | . . . . . . . . 1 Alert | -11 -10 -10 -10 -9 -8 -7 -7 -7 ------- Run | Yrd Mat Min Exi Min Mat Fac Was Fac Peak Influence 368 | 30 25 54 . 339 368 167 59 205 Initial 167 | . 19 9 . . 1 167 58 10 Average 80 | 12 22 52 . 135 71 167 33 55 Maximum Alert Level 1 | . . . . 1 1 . . 1 Low Security (%) 90 | 100 100 100 . 75 94 100 100 93 Level 1 9 | . . . . 24 5 . . 6 Level 2 . | . . . . . . . . . Level 3 . | . . . . . . . . . Level 4 . | . . . . . . . . . Level 5 . | . . . . . . . . . High Security . | . . . . . . . . . Max Security . | . . . . . . . . . Squads Dispatched 13 | . . . . . 6 . . 7 Investigation 2 | . . . . . 1 . . 1 Extermination 2 | . . . . . . . . 2 Reinforcement 7 | . . . . . 5 . . 2 Assault . | . . . . . . . . . Garrison 2 | . . . . . . . . 2 Intercept . | . . . . . . . . . Searches Triggered . | . . . . . . . . . Construction Impeded 3 | . . . . . 2 . . 1 Haulers Reinforced . | . . . . . . . . . Active Scanning Responses . | . . . . . . . . . Cargo Convoy Interrupts . | . . . . . . . . . Stealth | -11 -10 -10 -10 -9 -8 -7 -7 -7 --------- Run | Yrd Mat Min Exi Min Mat Fac Was Fac Distress Signals 3 | . . . . . 2 . . 1 Communications Jammed . | . . . . . . . . . Distress Signals . | . . . . . . . . . Times Spotted 69 | . . 4 . 14 26 . 5 20 Peak Tracking Total 7 | . . 2 . 7 5 . 3 5 Tactical Retreats 4 | . . . . . 3 . . 1 Traps | -11 -10 -10 -10 -9 -8 -7 -7 -7 ------- Run | Yrd Mat Min Exi Min Mat Fac Was Fac Traps Triggered 1 | . . . . . . 1 . . Indirectly . | . . . . . . . . . Trap Hack Attempts . | . . . . . . . . . Triggered . | . . . . . . . . . Disarmed . | . . . . . . . . . Reprogrammed . | . . . . . . . . . Reused . | . . . . . . . . . Traps Extracted . | . . . . . . . . . Installed . | . . . . . . . . . Triggered . | . . . . . . . . . Machines | -11 -10 -10 -10 -9 -8 -7 -7 -7 ---------- Run | Yrd Mat Min Exi Min Mat Fac Was Fac Machines Disabled 8 | . . . 1 . 5 . . 2 Max in Single Turn 1 | . . . 1 . 1 . . 1 Machines Repaired . | . . . . . . . . . Machines Dismantled . | . . . . . . . . . Machines Sabotaged . | . . . . . . . . . Overloaded Fab Kills . | . . . . . . . . . Hacking | -11 -10 -10 -10 -9 -8 -7 -7 -7 --------- Run | Yrd Mat Min Exi Min Mat Fac Was Fac Machines Accessed 10 | . 2 . 4 . 1 . . 3 Terminals 4 | . 2 . . . . . . 2 Fabricators . | . . . . . . . . . Repair Stations . | . . . . . . . . . Recycling Units 1 | . . . . . . . . 1 Scanalyzers 1 | . . . . . 1 . . . Garrison Access . | . . . . . . . . . Total Hacks 65 | . 6 . 49 . 4 . . 6 Successful 55 | . 1 . 49 . 2 . . 3 Failed 10 | . 5 . . . 2 . . 3 Catastrophic 1 | . . . . . . . . 1 Database Lockouts . | . . . . . . . . . Manual 9 | . 6 . 1 . . . . 2 Terminals 9 | . 6 . . . . . . 3 Fabricators . | . . . . . . . . . Repair Stations . | . . . . . . . . . Recycling Units 3 | . . . . . . . . 3 Scanalyzers 4 | . . . . . 4 . . . Garrison Access . | . . . . . . . . . Terminal Hacks 51 | . 1 . 49 . . . . 1 Record 49 | . . . 49 . . . . . Open DSF 1 | . . . . . . . . 1 Terminal Index 1 | . 1 . . . . . . . Fabricator Hacks . | . . . . . . . . . Repair Station Hacks . | . . . . . . . . . Recycling Unit Hacks 2 | . . . . . . . . 2 Retrieve Matter 2 | . . . . . . . . 2 Scanalyzer 2 | . . . . . 2 . . . Insert Component 1 | . . . . . 1 . . . Analyze 1 | . . . . . 1 . . . Garrison Access Hacks . | . . . . . . . . . Unauthorized Hacks . | . . . . . . . . . Terminals . | . . . . . . . . . Fabricators . | . . . . . . . . . Repair Stations . | . . . . . . . . . Recycling Units . | . . . . . . . . . Scanalyzers . | . . . . . . . . . Garrison Access . | . . . . . . . . . Data Cores Recovered . | . . . . . . . . . Used . | . . . . . . . . . Hacking Detections 5 | . 2 . . . 1 . . 2 Full Trace Events 2 | . . . . . 1 . . 1 Feedback Events . | . . . . . . . . . Feedback Blocked . | . . . . . . . . . Robot Schematics Acquired . | . . . . . . . . . Robots Built . | . . . . . . . . . Authchips . | . . . . . . . . . Time . | . . . . . . . . . Total Robot Build Rating . | . . . . . . . . . Part Schematics Acquired 1 | . . . . . 1 . . . Parts Built . | . . . . . . . . . Authchips . | . . . . . . . . . Time . | . . . . . . . . . Total Part Build Rating . | . . . . . . . . . Parts Repaired . | . . . . . . . . . Time . | . . . . . . . . . Parts Recycled . | . . . . . . . . . Recycled Matter . | . . . . . . . . . Retrieved Matter . | . . . . . . . . . Retrieved Components . | . . . . . . . . . Parts Scanalyzed 1 | . . . . . 1 . . . Part Schematics Acquired 1 | . . . . . 1 . . . Parts Damaged . | . . . . . . . . . Bothacking | -11 -10 -10 -10 -9 -8 -7 -7 -7 ------------ Run | Yrd Mat Min Exi Min Mat Fac Was Fac Used RIF Installer . | . . . . . . . . . Robots Hacked . | . . . . . . . . . Non-combat . | . . . . . . . . . Combat . | . . . . . . . . . Robot Hacks Applied . | . . . . . . . . . Relay Couplers Released . | . . . . . . . . . Fabnet Peak Effective % . | . . . . . . . . . Robots Rewired . | . . . . . . . . . Allies Hacked . | . . . . . . . . . Hacks Repelled . | . . . . . . . . . Allies | -11 -10 -10 -10 -9 -8 -7 -7 -7 -------- Run | Yrd Mat Min Exi Min Mat Fac Was Fac Total Allies 4 | . . . . 3 . . 1 . Largest Group 3 | . . . . 3 1 . 1 . Highest-Rated Group 40 | . . . . 40 13 . 31 . Highest-Rated Ally 31 | . . . . 16 13 . 31 . Total Orders . | . . . . . . . . . Ally Attacks 37 | . . . . 19 3 . 15 . Total Damage 442 | . . . . 171 . . 271 . Kills 7 | . . . . 7 . . . . Allies Corrupted . | . . . . . . . . . Allies Melted . | . . . . . . . . . Intel | -11 -10 -10 -10 -9 -8 -7 -7 -7 ------- Run | Yrd Mat Min Exi Min Mat Fac Was Fac Robot Analysis Total . | . . . . . . . . . Derelict Logs Recovered 2 | . . 1 . 1 . . . . Drone Launches . | . . . . . . . . . Drone Recoveries . | . . . . . . . . . Exploration | -11 -10 -10 -10 -9 -8 -7 -7 -7 ------------- Run | Yrd Mat Min Exi Min Mat Fac Was Fac Turns Passed 6047 | 119 92 210 733 1130 2309 135 102 1217 Spaces Moved 2644 | 69 92 180 605 661 574 95 74 294 Core 368 | 10 . . . . . . 64 294 Treads 159 | . . . . . 159 . . . Legs . | . . . . . . . . . Wheels 2117 | 59 92 180 605 661 415 95 10 . Hover . | . . . . . . . . . Flight . | . . . . . . . . . Fastest Speed 50 | 50 95 95 95 140 140 140 50 50 Average Speed 160 | 87 95 95 117 154 196 140 82 291 Slowest Speed 450 | 95 95 95 140 155 400 140 250 450 Overloaded Moves . | . . . . . . . . . Propulsion Burnouts . | . . . . . . . . . Robots Hopped . | . . . . . . . . . Cave-ins Triggered . | . . . . . . . . . Exploration Rate (%) 40 | 5 20 34 92 99 34 3 71 9 Regions Visited 8 Branch Regions 3 Pre-discovered Areas 1 | . . . 1 . . . . . Known Exits Taken 1 | . . . . . 1 . . . Unknown Exits Taken 5 | 1 1 1 1 1 . . . . Scrap Searched 2 | . . 1 . 1 . . . . Spaces Dug 68 | . . . . 18 19 . . 31 Terrain Destroyed 229 | . . . 18 53 113 . 1 44 Melee . | . . . . . . . . . Projectile 36 | . . . . 12 10 . 1 13 AOE 193 | . . . 18 41 103 . . 31 Terrain Rammed . | . . . . . . . . . Walls Destroyed . | . . . . . . . . . Machines Disabled . | . . . . . . . . . Actions | -11 -10 -10 -10 -9 -8 -7 -7 -7 --------- Run | Yrd Mat Min Exi Min Mat Fac Was Fac Total 4190 | 103 96 213 623 720 1636 98 92 609 Wait 1194 | . 4 27 1 18 910 . . 234 Move 2637 | 68 91 179 604 660 573 95 73 294 Hop . | . . . . . . . . . Pick Up 84 | 15 1 2 8 12 26 1 2 17 Fast Attach . | . . . . . . . . . Attach 40 | 7 . . 1 . 15 2 2 13 Detach 2 | . . . . . 1 . . 1 Swap 17 | . . . 3 2 12 . . . Drop 31 | 1 . 2 4 4 16 . 1 3 Fire 167 | 12 . 3 2 24 83 . 14 29 Melee . | . . . . . . . . . Ram 18 | . . . . . . . . 18 Kick . | . . . . . . . . . Crush . | . . . . . . . . . Escape Stasis . | . . . . . . . . . Rewire . | . . . . . . . . . Trap . | . . . . . . . . . Miscellaneous . | . . . . . . . . . Route ------- -11/Scrapyard -10/Materials -10/Mines -10/Exiles (discovered 2 exits: [*Min x2]) -9/Mines (discovered 2 exits: *Mat x2) -8/Materials -7/Factory -7/Waste -7/Factory History --------- Turn | Location | Event 24 | -11/Scrapyard | Discovered new exit (range 16) 120 | -11/Scrapyard | Entered Materials 189 | -10/Materials | Discovered new exit (range 5) 198 | -10/Materials | Met 8R-AWN 212 | -10/Materials | Entered Mines 213 | -10/Mines | Followed 8R-AWN into the Mines 242 | -10/Mines | Received a Rocket Launcher from a helpful Derelict 272 | -10/Mines | Learned Materials garrison access intel 301 | -10/Mines | Build established: Mutant 417 | -10/Mines | Discovered new exit (range 5) 422 | -10/Mines | Entered Exiles 440 | -10/Exiles | Discovered new exit (range 14) 456 | -10/Exiles | Welcomed by 8R-AWN 476 | -10/Exiles | Met EX-HEX 512 | -10/Exiles | Met EX-DEC 551 | -10/Exiles | Visited The Gauntlet 679 | -10/Exiles | Learned location of Zion (-7) 748 | -10/Exiles | Discovered new exit (range 14) 862 | -10/Exiles | Met EX-BIN 881 | -10/Exiles | Aligned with FarCom system 882 | -10/Exiles | Given EX-Vault access code 984 | -10/Exiles | Opened EX-Vault 992 | -10/Exiles | Found Deploy-a-Sentry 995 | -10/Exiles | Found Deploy-a-Sentry 997 | -10/Exiles | Found Deploy-a-Sentry 1039 | -10/Exiles | Warned to stay clear of 0b10 Research branches 1097 | -10/Exiles | Learned about 8R-AWN's background 1155 | -10/Exiles | Left Exiles lab with Deploy-a-Sentry 1155 | -10/Exiles | Entered Mines 1156 | -9/Mines | Assembled infested the area 1175 | -9/Mines | Met a Derelict bent on vengeance 1199 | -9/Mines | Assisted by bots powering up and referring to "LRC-V3" 1379 | -9/Mines | Joined a pair of Derelicts in attacking an 0b10 outpost 1667 | -9/Mines | Discovered new exit (range 11) 1812 | -9/Mines | Discovered new exit (range 3) 2285 | -9/Mines | Entered Materials 2285 | -8/Materials | Accompanied by 1 ally 2285 | -8/Materials | Evolved 4 slots: Power x1, Utility x3 2286 | -8/Materials | Loaded intel: 1 garrison access location 3912 | -8/Materials | Lost 4 parts (2p2n) 3950 | -8/Materials | Found Prototype Device 4108 | -8/Materials | Discovered new exit (range 15) 4521 | -8/Materials | Core integrity fell below 50% 4592 | -8/Materials | Identified exit to Factory 4594 | -8/Materials | Entered Factory 4594 | -7/Factory | Evolved 2 slots: Utility x1, Weapon x1 4595 | -7/Factory | Identified exit to Storage 4729 | -7/Factory | Sucked down chute 4729 | -7/Factory | Entered Waste 4730 | -7/Waste | Met a frightened Derelict 4741 | -7/Waste | Spotted C-40 Crusher 4744 | -7/Waste | EMP discharged 4744 | -7/Waste | System corruption reached 10% 4749 | -7/Waste | Spotted C-40 Crusher 4754 | -7/Waste | Destroyed C-40 Crusher 4758 | -7/Waste | Spotted C-40 Crusher 4760 | -7/Waste | Spotted C-40 Crusher 4773 | -7/Waste | Crushed by Compactor (0 parts destroyed, 1 dropped) 4775 | -7/Waste | Destroyed C-40 Crusher 4780 | -7/Waste | Crushed by Compactor (1 part destroyed) 4783 | -7/Waste | Crushed by Compactor (1 part destroyed) 4784 | -7/Waste | Crushed by Compactor (0 parts destroyed, 1 dropped) 4810 | -7/Waste | Spotted C-40 Crusher 4826 | -7/Waste | Discovered new exit (range 10) 4830 | -7/Waste | Identified exit to Factory 4831 | -7/Waste | Lost 4 parts (3u1w) 4831 | -7/Waste | Entered Factory 4831 | -7/Factory | Identified Active Sensor Suite 5244 | -7/Factory | Core integrity fell below 50% 5941 | -7/Factory | Lost 3 parts (1p2w) 5946 | -7/Factory | Garrison activated, responded to threat 5947 | -7/Factory | Core integrity fell below 20% 6048 | -7/Factory | Destroyed by S-27 Virus with Autogun Last Messages --------------- 06034_ K-01 Serf cleans the Power Conduit. 06037_ Acquired Hvy. Particle Cannon. 06038_ S-27 Virus destroyed. 06039_ K-01 Serf cleans the Power Conduit. 06040_ Destroyed VTOL Module. 06040_ S-27 Virus Lgt. Nuclear Core blasted off. 06040_ S-27 Virus knocked back. 06042_ K-01 Serf cleans the Power Conduit. 06046_ S-27 Virus destroyed. 06047_ Power Conduit explodes. 06047_ A-02 Transporter destroyed. 06047_ Power Conduit explodes. 06047_ O-16 Technician destroyed. 06047_ Power Conduit explodes. 06047_ K-01 Serf destroyed. 06047_ S-27 Virus destroyed. 06047_ K-01 Serf destroyed. 06047_ W-25 Informer destroyed. 06047_ K-01 Serf collects debris. [Achievement: 5k Club] Map ----- +----------------------------------------------------+ | ?????????????????????????????????????????????????? | | ?????????????????????????????????????????????????? | | ?????????????????????????????????????????????????? | | ?????????????????????????????????????????????????? | | ?????????????????????????????????????????????????? | | ?????????????????????????????????????????????????? | | ?????????????????????????????????????????????????? | | ?????????????????????????????????????????????????? | | ?????????????????????????????????????????????????? | | ?????????????????????????????????????????????????? | | ???????????????????????"?? "?????????????????????? | | ????????????????????? "" "????????????????????? | | ????????????????????# "" "" ????????????????? | | ???????????????? ??# #???????????????? | | ??????????????"" ### #?? ????????????? | | ?????????????? ; ; ]? ????????????? | | ????????????? ; ;;;;## ???????#???? | | ????????????? ?????? ???? | | ???????????? ????? ???? | | ???????????? ?????? ????? | | ???????????? !% ???????? ????? | | ??????????? ! ?????????? ????? | | ??????????? kss #?????????? #????? | | ?????????? !! #?????????? #????? | | ?????????s ! ! % #??????????*#????? | | ?????????? ! @ == ###########+#????? | | ?????????? ]! [% # %#????? | | ?????????? ;" = %#????" | | ??????????? #T #??? | | ???????????### #" #??""" | | ?????????????# # #? | | ?????????????# # #" """ | | ?????????????# + """"""" #" | | ?????????????# # """"""" #" """ | | ?????????????# ##### # """"""" =# | | ???????????????????# # """"""" #+#### | | ???????????????????###+########## [ = # #??? | | ????????????????????????????????# ![*!!# #??? | | ????????????????????????????????# ==%! # ###? | | ???????????????????????????????############## # #? | | ???????????????????????????????# =!= # # ## | | ???????????????????????????????# | | ???????????????????????????????# # = [ | | ???????????????????????????????# # | | ???????????????????????????????# # | | ???????????????????????????????## # ## | | ????????????????????????????????## ### """ | | ????????????????????????????????## "Y | | ?????????????????????????????????###### """ | | ??????????????????????????????????????#^^ | +----------------------------------------------------+ Best States ------------- Heat Dissipation 34 Energy Generation 23 Energy Capacity 400 Matter Stores 300 Matter Capacity 300 Sight Range 16 Robot Scan Range 20 Terrain Scan Density 10 Armor Coverage 450 Utility Shielding 66 Evasion (%) 50 Targeting Accuracy 5 Recoil Reduction 2 Kinecelleration 30 Salvage Targeting 1 Offensive Hacking 10 Item Schematics ----------------- Particle Cannon | -8/Materials | Scanalyzed Robot Schematics ------------------ None Fabricated ------------ Nothing Alien Tech Used ----------------- None Achievements -------------- 5k Club Fist Fight I Spy I Survived The Infestation Librarian Made in Tau Ceti IV Oops Please Form A Line Tourist Troublemaker Challenges ------------ None Game ------ Seed BiocellDamperTendrils Manual? 0 Play Time 01:17:48 Cumulative 6.1 hours Start 2024.05.02 @ 00:46:21 End 2024.05.02 @ 02:04:45 Sessions 1 Manual Loads 0 Difficulty Rogue Special Mode None Game No. 9 Rogue 9 Adventurer 0 Explorer 0 Win Type - Total 0 Types 0/0/0/0/0/0/0/0/0 Lore% 9 Gallery% 7 Achievement% 10 Wizard Run 0 Options --------- Layout 2 ASCII 1 Keyboard 1 Movement Arrows Keybinds 1 Fullscreen 2 Font 24/Smallcaps Map View 50x44 Zoom Use 0% Tactical HUD 1 Map Filters NONE Filters NONE Steam 1 RUN: e7198aa3-d09c-4a5a-a225-7d4a95c86960